fUSD/lending_fUSD_20251026
["ID","MTS","AMOUNT","RATE_DAILY","PERIOD"]
[392435018,1761472242910,-9883.42,0.00036261,2]
[392435019,1761472242919,-1000.0,0.000363,13]
[392435020,1761472242928,-1425.0,0.00036301,2]
[392435021,1761472242938,-220.80049834,0.0003637,16]
[392435022,1761472242947,-1500.0,0.000364,13]
[392435023,1761472242956,-1331.10242901,0.00036457,2]
[392435024,1761472242965,-2500.0,0.00036458,2]
[392435025,1761472242975,-1139.01263024,0.00036458,8]
[392435026,1761472242985,-1331.10242901,0.00036458,2]
[392435027,1761472242995,-1331.10242901,0.00036459,2]
[392435028,1761472243006,-1331.10242901,0.00036461,2]
[392435029,1761472243015,-1331.10242901,0.00036462,2]
[392435030,1761472243024,-1331.10242901,0.00036463,2]
[392435031,1761472243033,-1331.10242901,0.00036464,2]
[392435032,1761472243043,-1331.10242901,0.00036466,2]
[392435033,1761472243052,-1331.10242901,0.00036467,2]
[392435034,1761472243062,-801.4013613,0.00036467,2]
[392435035,1761472243071,-1000.0,0.00036467,120]
[392435036,1761472243080,-801.4013613,0.00036468,2]
[392435037,1761472243089,-184.8282,0.00036468,2]
[392435038,1761472243098,-1496.7534,0.00036468,2]
[392435039,1761472243107,-1060.91938787,0.00036468,2]
[392435040,1761472243116,-296.74615766,0.00036468,2]
[392435041,1761472243125,-5066.02799614,0.00036468,2]
[392435042,1761472243135,-1331.10242901,0.00036468,2]
[392435043,1761472243144,-215.0,0.000365,17]
[392435044,1761472243154,-215.0,0.000365,17]
[392435046,1761472243163,-2000.0,0.000365,13]
[392435048,1761472243173,-1425.0,0.00036505,2]
[392435050,1761472243182,-1276.7612228,0.00036537,2]
[392435052,1761472243191,-9069.66,0.00036537,2]
[392435054,1761472243200,-19489.1582477,0.00036547,4]
[392435056,1761472243209,-163.21,0.00036547,2]
[392435058,1761472243218,-25985.5443302,0.00036548,4]
[392435060,1761472243227,-150.0,0.00036548,7]
[392435062,1761472243236,-150.0,0.00036548,7]
[392435064,1761472243245,-150.0,0.00036548,7]
[392435066,1761472243254,-150.0,0.00036548,7]
[392435068,1761472243263,-153.06356195,0.00036548,7]
[392435070,1761472243272,-154.87453523,0.00036548,7]
[392435072,1761472243281,-1494.0,0.00036548,120]
[392435074,1761472243290,-214.25,0.00036555,14]
[392435075,1761472243299,-500.0,0.00036556,2]
[392435076,1761472243308,-500.0,0.00036556,9]
[392435077,1761472243317,-500.0,0.00036556,9]
[392435078,1761472243327,-500.0,0.00036556,2]
[392435079,1761472243337,-500.0,0.00036556,9]
[392435080,1761472243346,-500.0,0.00036556,9]
[392435081,1761472243355,-500.0,0.00036556,9]
[392435082,1761472243364,-927.98,0.00036556,9]
[392435083,1761472243374,-500.0,0.00036556,9]
[392435084,1761472243383,-500.0,0.00036556,9]
[392435085,1761472243392,-500.0,0.00036556,9]
[392435086,1761472243401,-500.0,0.00036556,9]
[392435088,1761472243410,-500.0,0.00036556,9]
[392435089,1761472243419,-500.0,0.00036556,9]
[392435090,1761472243428,-500.0,0.00036556,9]
[392435091,1761472243437,-500.0,0.00036556,9]
[392435092,1761472243452,-500.0,0.00036556,9]
[392435093,1761472243465,-500.0,0.00036556,9]
[392435094,1761472243475,-500.0,0.00036556,9]
[392435095,1761472243485,-500.0,0.00036556,9]
[392435096,1761472243495,-500.0,0.00036556,2]
[392435097,1761472243504,-500.0,0.00036556,9]
[392435098,1761472243513,-500.0,0.00036556,9]
[392435099,1761472243522,-500.0,0.00036556,9]
[392435100,1761472243532,-6496.38608256,0.00036556,4]
[392435101,1761472243541,-500.0,0.00036557,9]
[392435102,1761472243552,-163.28046371,0.00036557,9]
[392435103,1761472243563,-500.0,0.00036557,9]
[392435104,1761472243573,-500.0,0.00036557,9]
[392435105,1761472243582,-500.0,0.00036557,9]
[392435106,1761472243592,-500.0,0.00036557,9]
[392435107,1761472243602,-500.0,0.00036557,9]
[392435108,1761472243611,-500.0,0.00036557,9]
[392435109,1761472243621,-500.0,0.00036557,9]
[392435110,1761472243632,-500.0,0.00036557,9]
[392435111,1761472243642,-500.0,0.00036557,2]
[392435112,1761472243652,-500.0,0.00036557,9]
[392435113,1761472243662,-500.0,0.00036557,2]
[392435114,1761472243671,-500.0,0.00036557,9]
[392435115,1761472243681,-500.0,0.00036557,9]
[392435116,1761472243692,-500.0,0.00036557,2]
[392435117,1761472243701,-500.0,0.00036557,9]
[392435118,1761472243711,-500.0,0.00036557,9]
[392435119,1761472243720,-500.0,0.00036557,9]
[392435120,1761472243730,-500.0,0.00036557,9]
[392435121,1761472243739,-574.65019195,0.00036557,9]
[392435122,1761472243749,-500.0,0.00036557,9]
[392435123,1761472243759,-500.0,0.00036557,9]
[392435124,1761472243769,-293.94363702,0.00036557,9]
[392435125,1761472243779,-500.0,0.00036557,9]
[392435126,1761472243788,-500.0,0.00036557,9]
[392435127,1761472243797,-500.0,0.00036557,9]
[392435128,1761472243807,-548.94703135,0.00036557,9]
[392435129,1761472243817,-500.0,0.00036557,9]
[392435130,1761472243826,-500.0,0.00036557,9]
[392435131,1761472243839,-538.46907055,0.00036557,9]
[392435132,1761472243850,-500.0,0.00036557,9]
[392435133,1761472243859,-500.0,0.00036557,9]
[392435134,1761472243869,-500.0,0.00036557,9]
[392435135,1761472243879,-500.0,0.00036557,9]
[392435136,1761472243888,-500.0,0.00036557,9]
[392435137,1761472243898,-500.0,0.00036557,9]
[392435138,1761472243907,-500.0,0.00036557,9]
[392435139,1761472243916,-500.0,0.00036557,9]
[392435140,1761472243926,-500.0,0.00036557,9]
[392435141,1761472243935,-500.0,0.00036557,9]
[392435142,1761472243946,-511.23547118,0.00036557,9]
[392435143,1761472243956,-500.0,0.00036557,9]
[392435144,1761472243966,-500.0,0.00036557,9]
[392435145,1761472243976,-500.0,0.00036557,9]
[392435146,1761472243985,-500.0,0.00036557,9]
[392435147,1761472243996,-150.0,0.00036557,9]
[392435148,1761472244006,-500.0,0.00036557,9]
[392435149,1761472244018,-150.0,0.00036557,9]
[392435150,1761472244028,-500.0,0.00036557,9]
[392435151,1761472244037,-500.0,0.00036557,9]
[392435152,1761472244048,-500.0,0.00036557,9]
[392435153,1761472244058,-500.0,0.00036557,9]
[392435154,1761472244067,-500.0,0.00036557,9]
[392435155,1761472244077,-500.0,0.00036557,9]
[392435156,1761472244087,-500.0,0.00036557,9]
[392435157,1761472244096,-500.0,0.00036557,9]
[392435158,1761472244107,-642.69713414,0.00036557,9]
[392435159,1761472244116,-162.66091536,0.00036557,9]
[392435160,1761472244126,-500.0,0.00036557,9]
[392435161,1761472244135,-500.0,0.00036557,9]
[392435162,1761472244145,-500.0,0.00036557,9]
[392435163,1761472244154,-500.0,0.00036557,9]
[392435164,1761472244164,-500.0,0.00036557,9]
[392435165,1761472244173,-500.0,0.00036557,9]
[392435166,1761472244183,-500.0,0.00036557,9]
[392435167,1761472244192,-500.0,0.00036557,9]
[392435168,1761472244201,-500.0,0.00036557,9]
[392435169,1761472244210,-961.767267,0.00036557,9]
[392435170,1761472244223,-500.0,0.00036557,9]
[392435171,1761472244233,-500.0,0.00036557,9]
[392435172,1761472244242,-274.702557,0.00036557,9]
[392435173,1761472244251,-370.947825,0.00036557,9]
[392435174,1761472244261,-273.887928,0.00036557,9]
[392435175,1761472244271,-563.624046,0.00036557,9]
[392435176,1761472244280,-500.0,0.00036557,9]
[392435177,1761472244289,-3028.767665,0.00036557,9]
[392435178,1761472244299,-500.0,0.00036557,9]
[392435179,1761472244308,-500.0,0.00036557,9]
[392435180,1761472244318,-500.0,0.00036557,9]
[392435181,1761472244328,-500.0,0.00036557,9]
[392435182,1761472244338,-500.0,0.00036557,9]
[392435183,1761472244347,-500.0,0.00036557,9]
[392435184,1761472244356,-500.0,0.00036557,9]
[392435185,1761472244366,-500.0,0.00036557,9]
[392435186,1761472244375,-500.0,0.00036557,9]
[392435187,1761472244385,-500.0,0.00036557,9]
[392435188,1761472244394,-500.0,0.00036557,9]
[392435189,1761472244404,-500.0,0.00036557,9]
[392435190,1761472244413,-500.0,0.00036557,9]
[392435191,1761472244423,-500.0,0.00036557,9]
[392435192,1761472244432,-500.0,0.00036557,9]
[392435193,1761472244442,-500.0,0.00036557,9]
[392435194,1761472244452,-500.0,0.00036557,9]
[392435195,1761472244461,-500.0,0.00036557,9]
[392435196,1761472244470,-500.0,0.00036557,9]
[392435197,1761472244480,-500.0,0.00036557,9]
[392435198,1761472244489,-500.0,0.00036557,9]
[392435199,1761472244498,-500.0,0.00036557,9]
[392435200,1761472244507,-500.0,0.00036557,9]
[392435201,1761472244517,-500.0,0.00036557,9]
[392435202,1761472244527,-500.0,0.00036557,9]
[392435203,1761472244536,-500.0,0.00036557,9]
[392435204,1761472244547,-500.0,0.00036557,9]
[392435205,1761472244556,-500.0,0.00036557,9]
[392435206,1761472244566,-500.0,0.00036557,9]
[392435207,1761472244575,-500.0,0.00036557,9]
[392435208,1761472244585,-500.0,0.00036557,9]
[392435209,1761472244595,-500.0,0.00036557,9]
[392435210,1761472244608,-500.0,0.00036557,9]
[392435211,1761472244617,-500.0,0.00036557,9]
[392435212,1761472244627,-1641.06,0.00036557,2]
[392435213,1761472244636,-500.0,0.00036557,9]
[392435214,1761472244646,-500.0,0.00036557,9]
[392435215,1761472244655,-500.0,0.00036557,9]
[392435216,1761472244665,-500.0,0.00036557,9]
[392435217,1761472244674,-500.0,0.00036557,9]
[392435218,1761472244684,-500.0,0.00036557,9]
[392435219,1761472244694,-500.0,0.00036557,9]
[392435220,1761472244703,-500.0,0.00036557,9]
[392435221,1761472244712,-500.0,0.00036557,9]
[392435222,1761472244722,-500.0,0.00036557,9]
[392435223,1761472244731,-500.0,0.00036557,9]
[392435224,1761472244741,-500.0,0.00036557,9]
[392435225,1761472244750,-500.0,0.00036557,9]
[392435226,1761472244759,-508.39145988,0.00036557,9]
[392435227,1761472244769,-500.0,0.00036557,9]
[392435228,1761472244778,-500.0,0.00036557,9]
[392435229,1761472244788,-500.0,0.00036557,9]
[392435230,1761472244798,-500.0,0.00036557,9]
[392435231,1761472244809,-500.0,0.00036557,9]
[392435232,1761472244819,-500.0,0.00036557,9]
[392435233,1761472244829,-500.0,0.00036557,9]
[392435234,1761472244839,-500.0,0.00036557,9]
[392435235,1761472244849,-567.94500611,0.00036557,9]
[392435236,1761472244858,-173.32758566,0.00036557,9]
[392435237,1761472244868,-500.0,0.00036557,9]
[392435238,1761472244877,-500.0,0.00036557,9]
[392435239,1761472244887,-500.0,0.00036557,9]
[392435240,1761472244897,-500.0,0.00036557,9]
[392435241,1761472244906,-500.0,0.00036557,9]
[392435242,1761472244916,-500.0,0.00036557,9]
[392435243,1761472244926,-500.0,0.00036557,9]
[392435244,1761472244936,-500.0,0.00036557,9]
[392435245,1761472244946,-500.0,0.00036557,9]
[392435246,1761472244955,-500.0,0.00036557,9]
[392435247,1761472244965,-500.0,0.00036557,9]
[392435248,1761472244975,-500.0,0.00036557,9]
[392435249,1761472244988,-500.0,0.00036557,9]
[392435250,1761472244998,-500.0,0.00036557,9]
[392435251,1761472245008,-500.0,0.00036557,7]
[392435252,1761472245018,-500.0,0.00036557,9]
[392435253,1761472245029,-500.0,0.00036557,9]
[392435254,1761472245039,-500.0,0.00036557,9]
[392435255,1761472245048,-500.0,0.00036557,9]
[392435256,1761472245058,-624.07836345,0.00036557,9]
[392435257,1761472245067,-229.57138977,0.00036557,9]
[392435258,1761472245077,-500.0,0.00036557,9]
[392435259,1761472245087,-500.0,0.00036557,9]
[392435260,1761472245098,-500.0,0.00036557,9]
[392435261,1761472245108,-500.0,0.00036557,9]
[392435262,1761472245117,-500.0,0.00036557,9]
[392435263,1761472245127,-311.03482096,0.00036557,9]
[392435264,1761472245136,-560.55219619,0.00036557,9]
[392435265,1761472245146,-604.36558646,0.00036557,9]
[392435266,1761472245156,-504.02866543,0.00036557,9]
[392435267,1761472245167,-500.0,0.00036557,9]
[392435268,1761472245177,-500.0,0.00036557,9]
[392435269,1761472245187,-500.0,0.00036557,9]
[392435270,1761472245196,-500.0,0.00036557,9]
[392435271,1761472245207,-500.0,0.00036557,9]
[392435272,1761472245216,-500.0,0.00036557,9]
[392435273,1761472245226,-500.0,0.00036557,9]
[392435274,1761472245235,-500.0,0.00036557,9]
[392435275,1761472245246,-500.0,0.00036557,9]
[392435276,1761472245255,-500.0,0.00036557,9]
[392435277,1761472245265,-500.0,0.00036557,9]
[392435278,1761472245275,-500.0,0.00036557,9]
[392435279,1761472245286,-500.0,0.00036557,9]
[392435280,1761472245296,-479.46502183,0.00036557,9]
[392435281,1761472245306,-500.0,0.00036557,9]
[392435282,1761472245315,-500.0,0.00036557,9]
[392435283,1761472245324,-500.0,0.00036557,9]
[392435284,1761472245333,-500.0,0.00036557,9]
[392435285,1761472245343,-500.0,0.00036557,9]
[392435286,1761472245352,-500.0,0.00036557,7]
[392435287,1761472245362,-610.75891912,0.00036557,7]
[392435288,1761472245371,-187.99874393,0.00036557,9]
[392435289,1761472245381,-500.0,0.00036557,9]
[392435290,1761472245390,-1000.0,0.00036557,2]
[392435291,1761472245399,-500.0,0.00036557,9]
[392435292,1761472245408,-325.24388322,0.00036557,9]
[392435293,1761472245417,-500.0,0.00036557,9]
[392435294,1761472245427,-500.0,0.00036557,9]
[392435295,1761472245436,-303.29647545,0.00036557,9]
[392435296,1761472245445,-500.0,0.00036557,9]
[392435297,1761472245455,-500.0,0.00036557,9]
[392435298,1761472245464,-500.0,0.00036557,9]
[392435299,1761472245473,-500.0,0.00036557,9]
[392435300,1761472245482,-500.0,0.00036557,9]
[392435301,1761472245491,-500.0,0.00036557,9]
[392435302,1761472245502,-500.0,0.00036557,9]
[392435303,1761472245513,-328.62932435,0.00036557,9]
[392435304,1761472245524,-500.0,0.00036557,9]
[392435305,1761472245535,-500.0,0.00036557,9]
[392435306,1761472245545,-500.0,0.00036557,9]
[392435308,1761472245556,-1504.25,0.00036557,9]
[392435309,1761472245566,-500.0,0.00036557,9]
[392435310,1761472245575,-500.0,0.00036557,9]
[392435311,1761472245585,-500.0,0.00036557,9]
[392435312,1761472245595,-500.0,0.00036557,9]
[392435313,1761472245604,-500.0,0.00036557,9]
[392435314,1761472245614,-174.14259,0.00036557,9]
[392435315,1761472245623,-500.0,0.00036557,9]
[392435317,1761472245776,-500.0,0.00036557,9]
[392435318,1761472245786,-161.302129,0.00036557,9]
[392435319,1761472245793,-500.0,0.00036557,9]
[392435320,1761472245800,-500.0,0.00036557,9]
[392435321,1761472245807,-500.0,0.00036557,9]
[392435322,1761472245814,-500.0,0.00036557,9]
[392435323,1761472245820,-377.38715978,0.00036557,9]
[392435324,1761472245828,-500.0,0.00036557,9]
[392435325,1761472245836,-500.0,0.00036557,9]
[392435326,1761472245843,-500.0,0.00036557,9]
[392435327,1761472245849,-500.0,0.00036557,9]
[392435328,1761472245857,-195.6513935,0.00036557,9]
[392435329,1761472245864,-500.0,0.00036557,9]
[392435330,1761472245870,-500.0,0.00036557,9]
[392435331,1761472245877,-500.0,0.00036557,9]
[392435332,1761472245884,-500.0,0.00036557,9]
[392435333,1761472245891,-500.0,0.00036557,9]
[392435334,1761472245899,-500.0,0.00036557,9]
[392435335,1761472245906,-500.0,0.00036557,9]
[392435336,1761472245913,-500.0,0.00036557,9]
[392435337,1761472245921,-500.0,0.00036557,9]
[392435338,1761472245927,-500.0,0.00036557,9]
[392435339,1761472245933,-209.60678579,0.00036557,9]
[392435340,1761472245941,-500.0,0.00036557,9]
[392435341,1761472245947,-500.0,0.00036557,9]
[392435342,1761472245955,-500.0,0.00036557,9]
[392435343,1761472245963,-500.0,0.00036557,9]
[392435344,1761472245972,-500.0,0.00036557,9]
[392435345,1761472245980,-500.0,0.00036557,9]
[392435346,1761472245988,-151.0,0.00036557,30]
[392435347,1761472245995,-500.0,0.00036557,9]
[392435348,1761472246006,-500.0,0.00036557,9]
[392435349,1761472246017,-500.0,0.00036557,9]
[392435350,1761472246026,-500.0,0.00036557,9]
[392435351,1761472246036,-500.0,0.00036557,9]
[392435352,1761472246046,-571.18076579,0.00036557,9]
[392435353,1761472246056,-500.0,0.00036557,9]
[392435354,1761472246066,-500.0,0.00036557,9]
[392435355,1761472246076,-500.0,0.00036557,9]
[392435356,1761472246085,-151.0,0.00036557,30]
[392435357,1761472246094,-151.0,0.00036557,30]
[392435358,1761472246103,-500.0,0.00036557,9]
[392435359,1761472246113,-237.25245883,0.00036557,9]
[392435360,1761472246123,-151.0,0.00036557,30]
[392435361,1761472246134,-500.0,0.00036557,9]
[392435362,1761472246143,-500.0,0.00036557,9]
[392435363,1761472246153,-500.0,0.00036557,9]
[392435364,1761472246162,-500.0,0.00036557,9]
[392435365,1761472246172,-500.0,0.00036557,9]
[392435366,1761472246182,-500.0,0.00036557,9]
[392435367,1761472246191,-502.94279984,0.00036557,9]
[392435368,1761472246200,-500.0,0.00036557,9]
[392435369,1761472246210,-500.0,0.00036557,9]
[392435370,1761472246220,-500.0,0.00036557,9]
[392435371,1761472246229,-500.0,0.00036557,9]
[392435372,1761472246239,-500.0,0.00036557,9]
[392435373,1761472246248,-500.0,0.00036557,9]
[392435374,1761472246258,-500.0,0.00036557,9]
[392435375,1761472246267,-500.0,0.00036557,9]
[392435376,1761472246276,-500.0,0.00036557,2]
[392435377,1761472246285,-500.0,0.00036557,9]
[392435378,1761472246294,-500.0,0.00036557,9]
[392435379,1761472246304,-500.0,0.00036557,9]
[392435380,1761472246314,-500.0,0.00036557,2]
[392435381,1761472246323,-500.0,0.00036557,9]
[392435382,1761472246332,-500.0,0.00036557,9]
[392435383,1761472246342,-500.0,0.00036557,9]
[392435384,1761472246351,-500.0,0.00036557,9]
[392435386,1761472246360,-500.0,0.00036557,9]
[392435387,1761472246369,-500.0,0.00036557,9]
[392435388,1761472246378,-500.0,0.00036557,9]
[392435389,1761472246387,-500.0,0.00036557,9]
[392435390,1761472246396,-500.0,0.00036557,9]
[392435391,1761472246406,-6496.38608256,0.00036557,4]
[392435392,1761472246415,-51971.0886605,0.00036557,4]
[392435393,1761472246424,-110438.563404,0.00036558,4]
[392435394,1761472246433,-224751.496,0.00036558,4]
[392435395,1761472246443,-161.53545055,0.00036558,2]
[392435396,1761472246452,-160.400703,0.00036558,30]
[392435397,1761472246461,-151.0,0.00036558,30]
[392435398,1761472246471,-151.0,0.00036558,30]
[392435399,1761472246481,-151.0,0.00036558,30]
[392435400,1761472246491,-151.0,0.00036558,30]
[392435401,1761472246500,-151.0,0.00036558,30]
[392435402,1761472246510,-157.0,0.00036558,30]
[392435403,1761472246519,-151.0,0.00036558,30]
[392435404,1761472246528,-151.0,0.00036558,30]
[392435405,1761472246537,-151.0,0.00036558,30]
[392435406,1761472246547,-151.0,0.00036558,30]
[392435407,1761472246556,-151.0,0.00036558,30]
[392435408,1761472246565,-151.0,0.00036558,30]
[392435409,1761472246575,-2987.2,0.00036561,2]
[392435410,1761472246584,-440.0613268,0.00036561,2]
[392435411,1761472246593,-301.80824379,0.00036566,30]
[392435412,1761472246602,-414.0,0.00036566,30]
[392435413,1761472246611,-250.0,0.00036566,30]
[392435414,1761472246620,-160.12855638,0.00036566,30]
[392435415,1761472246629,-250.0,0.00036566,30]
[392435416,1761472246639,-250.0,0.00036566,30]
[392435417,1761472246648,-500.0,0.00036566,30]
[392435418,1761472246657,-250.0,0.00036566,30]
[392435419,1761472246667,-500.0,0.00036566,30]
[392435420,1761472246676,-250.0,0.00036566,30]
[392435421,1761472246686,-500.0,0.00036566,30]
[392435422,1761472246695,-250.0,0.00036566,30]
[392435423,1761472246704,-500.0,0.00036566,30]
[392435424,1761472246713,-250.0,0.00036566,30]
[392435425,1761472246722,-500.0,0.00036566,30]
[392435426,1761472246731,-250.0,0.00036566,30]
[392435427,1761472246740,-500.0,0.00036566,30]
[392435428,1761472246750,-250.0,0.00036566,30]
[392435429,1761472246759,-150.0,0.00036567,2]
[392435430,1761472246769,-1267.85594739,0.00036567,2]
[392435431,1761472246778,-500.0,0.00036567,7]
[392435432,1761472246787,-500.0,0.00036567,9]
[392435433,1761472246796,-529.60548709,0.00036567,9]
[392435434,1761472246805,-1000.0,0.00036567,2]
[392435435,1761472246814,-1000.0,0.00036567,2]
[392435436,1761472246823,-1000.0,0.00036567,2]
[392435437,1761472246832,-1000.0,0.00036567,2]
[392435438,1761472246842,-1000.0,0.00036567,2]
[392435439,1761472246856,-1000.0,0.00036567,2]
[392435440,1761472246865,-1000.0,0.00036567,2]
[392435441,1761472246874,-1000.0,0.00036567,2]
[392435442,1761472246888,-1000.0,0.00036567,2]
[392435443,1761472246897,-1000.0,0.00036567,2]
[392435444,1761472246907,-1000.0,0.00036567,2]
[392435445,1761472246916,-1000.0,0.00036567,2]
[392435446,1761472246925,-1000.0,0.00036567,2]
[392435447,1761472246936,-1000.0,0.00036567,2]
[392435448,1761472246945,-1000.0,0.00036567,2]
[392435449,1761472246954,-1000.0,0.00036567,2]
[392435450,1761472246963,-532.27001327,0.00036567,2]
[392435451,1761472246972,-500.0,0.00036567,9]
[392435452,1761472246981,-304.10728981,0.00036567,9]
[392435453,1761472246990,-151.0,0.00036567,30]
[392435454,1761472246999,-151.0,0.00036567,30]
[392435455,1761472247008,-500.0,0.00036567,2]
[392435456,1761472247018,-500.0,0.00036567,2]
[392435457,1761472247027,-274.36483822,0.00036567,2]
[392435458,1761472247036,-151.0,0.00036567,30]
[392435459,1761472247045,-151.0,0.00036567,30]
[392435460,1761472247054,-151.0,0.00036567,30]
[392435461,1761472247063,-151.0,0.00036567,30]
[392435462,1761472247072,-151.0,0.00036567,30]
[392435463,1761472247081,-151.0,0.00036567,30]
[392435464,1761472247090,-151.0,0.00036567,30]
[392435465,1761472247100,-559.06068,0.00036567,2]
[392435466,1761472247109,-96516.65828787,0.00036567,32]
[392435467,1761472247119,-886253.30530306,0.00036568,120]
[392435468,1761472247128,-274000.98795176,0.00036568,120]
[392435469,1761472247245,-11232.99999999,0.00036568,120]
[392435470,1761472247418,-500.0,0.000365,21]
[392435471,1761472247427,-151.0,0.00036557,30]
[392435472,1761472247436,-500.0,0.00036557,9]
[392435473,1761472247446,-500.0,0.00036557,9]
[392435474,1761472247455,-151.0,0.00036558,30]
[392435475,1761472247464,-151.0,0.00036558,30]
[392435476,1761472247473,-151.0,0.00036567,30]
[392435477,1761472247482,-1190.4601368,0.00036568,120]
[392435478,1761472247493,-556.55,0.00036568,120]
[392435479,1761472247504,-2213.79230084,0.00036568,120]
[392435480,1761472247522,-1743.580396,0.00036568,120]
[392435481,1761472247532,-2602.95426292,0.00036568,120]
[392435484,1761472324909,300.0,0.0002739,120]
[392435485,1761472325009,185.81493276,0.00025174,120]
[392435486,1761472327012,5000.0,0.0002739,120]
[392435487,1761472327125,5000.0,0.00025174,120]
[392435488,1761472327233,2721.69931689,0.00029389,120]
[392435503,1761472748061,185676.35,0.00036885,50]
[392435506,1761472930177,150.0,0.000297,120]
[392435507,1761472986349,1075.54500018,0.00029699,120]
[392435516,1761473252920,2305.45,0.00021655,2]
[392435540,1761473432116,-264.259999,0.00025,2]
[392435541,1761473432167,-749.400001,0.00025,2]
[392435542,1761473432181,-5.38809955,0.000255,2]
[392435543,1761473432197,-1008.27190045,0.000255,2]
[392435544,1761473432208,-160.0,0.00026961,2]
[392435545,1761473432221,-1058.0,0.00026999,2]
[392435546,1761473432233,-300.0,0.00026999,2]
[392435547,1761473432247,-300.0,0.00026999,2]
[392435548,1761473432258,-1200.0,0.00026999,2]
[392435549,1761473432271,-500.0,0.00027,2]
[392435550,1761473432281,-500.0,0.00027,2]
[392435551,1761473432291,-304.60928756,0.00027,2]
[392435552,1761473432303,-150.0,0.00027,2]
[392435553,1761473432315,-400.0,0.00029318,2]
[392435554,1761473432326,-13296.24700314,0.0003,2]
[392435555,1761473432340,-11575.69227174,0.0003,2]
[392435556,1761473432353,-6850.0,0.000302,2]
[392435557,1761473432364,-291.13,0.00030589,2]
[392435559,1761473432376,-5515.0,0.000308,3]
[392435561,1761473432386,-5515.0,0.000314,5]
[392435563,1761473432399,-1000.0,0.00031458,2]
[392435564,1761473432410,-151.0,0.00031481,2]
[392435565,1761473432423,-151.0,0.00031481,2]
[392435566,1761473432434,-164.49996355,0.00031481,2]
[392435567,1761473432444,-963.53,0.00031699,14]
[392435568,1761473432458,-1000.0,0.00031732,2]
[392435569,1761473432470,-150.0,0.00031774,2]
[392435570,1761473432482,-1000.0,0.00031844,2]
[392435571,1761473432493,-175.54,0.00031848,2]
[392435572,1761473432505,-3499.38,0.00031932,2]
[392435573,1761473432516,-963.53,0.00031973,14]
[392435574,1761473432527,-210.29861482,0.00032,120]
[392435575,1761473432540,-180.00585458,0.00032,120]
[392435576,1761473432552,-165.91435179,0.00032,120]
[392435577,1761473432570,-183.37339683,0.00032,120]
[392435578,1761473432583,-392.77434429,0.00032,120]
[392435579,1761473432595,-210.54803165,0.00032,120]
[392435580,1761473432608,-1000.0,0.00032006,2]
[392435581,1761473432618,-217.92,0.00032025,2]
[392435582,1761473432628,-156.52,0.00032169,2]
[392435583,1761473432640,-314.86,0.00032206,30]
[392435584,1761473432650,-963.53,0.00032247,14]
[392435585,1761473432662,-1000.0,0.0003228,2]
[392435586,1761473432675,-156.52,0.00032437,2]
[392435587,1761473432688,-963.53,0.00032521,14]
[392435588,1761473432698,-1000.0,0.00032554,2]